bitfinex-derivatives/quotes_BTCF0:USTF0_20251110
["timestamp","ask_amount","ask_price","bid_price","bid_amount"]
[1762733117284,0.66175659,104620.0,104610.0,0.99459916]
[1762733117481,0.12130659,104620.0,104610.0,0.99459916]
[1762733117684,0.001,104620.0,104610.0,0.99459916]
[1762733117982,0.13694957,104630.0,104620.0,0.7162366]
[1762733118180,0.01884101,104630.0,104620.0,1.0770366]
[1762733118379,0.1687213,104640.0,104630.0,0.6276374]
[1762733118577,1.40568738,104660.0,104650.0,0.53204]
[1762733118777,1.28938043,104660.0,104650.0,0.53204]
[1762733118976,0.76694043,104660.0,104650.0,0.6266191]
[1762733119178,0.6208901,104660.0,104650.0,0.9874191]
[1762733119587,0.4010977,104660.0,104650.0,0.9874191]
[1762733119886,0.4182942,104660.0,104650.0,0.9874191]
[1762733120092,0.29968453,104660.0,104650.0,0.9874191]
[1762733120287,1.08678453,104660.0,104650.0,0.53104]
[1762733120478,0.72798453,104660.0,104650.0,0.53204]
[1762733121186,0.72598453,104660.0,104650.0,0.53104]
[1762733121382,0.72698453,104660.0,104650.0,0.53704]
[1762733121691,0.72398453,104660.0,104650.0,0.53904]
[1762733121988,0.84260822,104660.0,104650.0,0.53904]
[1762733122681,0.72398453,104660.0,104650.0,0.53904]
[1762733122881,1.08478453,104660.0,104650.0,0.53904]
[1762733123085,1.30457693,104660.0,104650.0,0.51726134]
[1762733123484,0.94377693,104660.0,104650.0,0.51726134]
[1762733123682,1.30457693,104660.0,104650.0,0.51726134]
[1762733124082,1.30457693,104660.0,104650.0,0.50170505]
[1762733124285,1.30457693,104660.0,104650.0,0.49970505]
[1762733124789,1.30457693,104660.0,104650.0,0.52059205]
[1762733124992,0.94377693,104660.0,104650.0,0.52059205]
[1762733125689,1.30457693,104660.0,104650.0,0.008]
[1762733126690,1.08478453,104660.0,104650.0,0.008]
[1762733126890,0.68643,104640.0,104630.0,0.54205]
[1762733127085,0.68643,104620.0,104610.0,0.54205]
[1762733127293,0.53396,104610.0,104600.0,0.54205]
[1762733127483,0.68643,104600.0,104590.0,0.54205]
[1762733127683,1.04942803,104600.0,104590.0,0.54205]
[1762733127993,1.21934538,104600.0,104590.0,0.54205]
[1762733128385,0.53396,104590.0,104580.0,0.54219346]
[1762733128580,0.89695803,104590.0,104580.0,0.54219346]
[1762733128790,1.06687538,104590.0,104580.0,0.54219346]
[1762733129384,1.06687538,104590.0,104580.0,0.26728346]
[1762733130393,0.89695803,104590.0,104580.0,0.26728346]
[1762733130598,0.89995803,104590.0,104580.0,0.27628346]
[1762733131294,0.89995803,104590.0,104580.0,0.09452122]
[1762733131495,1.17112429,104590.0,104580.0,0.09452122]
[1762733131790,1.48757874,104590.0,104570.0,0.00478126]
[1762733131990,1.21710832,104580.0,104570.0,0.00478126]
[1762733132194,1.21930635,104580.0,104570.0,0.00478126]
[1762733132688,1.04942803,104580.0,104570.0,0.00478126]
[1762733132999,0.53396,104570.0,104560.0,0.00014346]
[1762733133186,0.89695803,104570.0,104560.0,0.00014346]
[1762733134083,0.89695803,104570.0,104560.0,0.19508]
[1762733134084,0.36299803,104570.0,104560.0,0.19508]
[1762733134289,0.68643,104560.0,104550.0,0.47040387]
[1762733134598,0.85824643,104560.0,104550.0,0.39016]
[1762733134795,0.85824643,104560.0,104550.0,0.4858307]
[1762733135090,0.17181643,104560.0,104550.0,0.8466307]
[1762733135297,0.00219803,104560.0,104550.0,0.8466307]
[1762733135493,0.80833165,104560.0,104550.0,0.75296]
[1762733135899,0.80833165,104560.0,104550.0,0.8486308]
[1762733136088,0.11970362,104560.0,104550.0,0.85082883]
[1762733136292,0.06186876,104560.0,104550.0,1.5088699]
[1762733136597,0.00014346,104570.0,104560.0,0.7341816]
[1762733136798,0.00087613,104570.0,104560.0,1.09717963]
[1762733137298,0.22082035,104580.0,104570.0,0.3627924]
[1762733137489,0.22155302,104580.0,104570.0,0.63990043]
[1762733137989,0.68716267,104580.0,104570.0,0.54424803]
[1762733138185,1.04796267,104580.0,104570.0,0.54424803]
[1762733138688,1.04996267,104580.0,104570.0,0.54524803]
[1762733139290,0.53396,104570.0,104560.0,0.00214346]
[1762733139490,0.89695803,104570.0,104560.0,0.00014346]
[1762733140390,1.11777838,104570.0,104560.0,0.00014346]
[1762733140590,1.11977838,104570.0,104560.0,0.00214346]
[1762733140800,1.12077838,104570.0,104560.0,0.00214346]
[1762733141101,1.12077838,104570.0,104560.0,0.0009098]
[1762733141594,1.06895469,104570.0,104560.0,0.5429598]
[1762733142300,0.89995803,104570.0,104560.0,0.5429598]
[1762733142501,0.89995803,104570.0,104560.0,0.2680498]
[1762733142799,0.89995803,104570.0,104560.0,0.5429598]
[1762733143993,0.89995803,104570.0,104560.0,0.52739009]
[1762733144188,0.89995803,104570.0,104560.0,0.62305169]
[1762733144389,0.53915803,104570.0,104560.0,0.44196598]
[1762733144898,0.17419469,104570.0,104560.0,0.58936598]
[1762733145299,0.70815469,104570.0,104560.0,0.58936598]
[1762733145802,0.70815469,104570.0,104560.0,0.49370448]
[1762733146002,0.70815469,104570.0,104560.0,0.58936598]
[1762733146499,0.70815469,104570.0,104560.0,0.49370448]
[1762733146900,0.70815469,104570.0,104560.0,0.58936598]
[1762733147095,0.17419469,104570.0,104560.0,0.58936598]
[1762733147290,0.17419469,104570.0,104560.0,0.92837023]
[1762733147696,0.70322469,104570.0,104560.0,0.92837023]
[1762733147902,0.65255526,104570.0,104560.0,0.47190873]
[1762733148106,1.01335526,104570.0,104560.0,0.1474]
[1762733148402,0.89502803,104570.0,104560.0,0.1474]
[1762733148994,0.89502803,104570.0,104560.0,0.56972]
[1762733149202,0.89502803,104570.0,104560.0,0.6653815]
[1762733149506,0.89502803,104570.0,104560.0,0.56972]
[1762733149905,0.89502803,104570.0,104560.0,0.6653815]
[1762733150305,0.89502803,104570.0,104560.0,0.56972]
[1762733150606,0.89502803,104570.0,104560.0,0.6653815]
[1762733151408,0.84399666,104580.0,104570.0,0.5179724]
[1762733151600,1.11589559,104580.0,104570.0,0.2614874]
[1762733152006,0.94689893,104580.0,104570.0,0.3571398]
[1762733152402,1.16659458,104580.0,104570.0,0.22782372]
[1762733152604,1.16759458,104580.0,104570.0,0.22782372]
[1762733152797,1.16759458,104580.0,104570.0,0.32347612]
[1762733153502,0.54558322,104580.0,104570.0,0.70480612]
[1762733153697,0.07115757,104580.0,104570.0,0.70480612]
[1762733153901,0.00373267,104580.0,104570.0,0.79648612]
[1762733154108,0.16382267,104580.0,104570.0,0.78092046]
[1762733154404,0.43162267,104580.0,104570.0,0.78092046]
[1762733154709,0.43162267,104580.0,104570.0,0.54184046]
[1762733154710,0.68635267,104580.0,104570.0,0.54184046]
[1762733154896,0.90604832,104580.0,104570.0,0.78092046]
[1762733155099,0.90604832,104580.0,104570.0,0.54184046]
[1762733155311,0.21969565,104580.0,104570.0,0.52004838]
[1762733155506,0.21969565,104580.0,104570.0,0.75912838]
[1762733156004,0.90231565,104580.0,104570.0,0.06359598]
[1762733156609,1.43343639,104580.0,104570.0,0.06359598]
[1762733157109,1.43343639,104580.0,104570.0,0.03246196]
[1762733157305,1.21374074,104580.0,104570.0,0.03246196]
[1762733157602,0.53321,104570.0,104560.0,0.67302]
[1762733157811,0.89620803,104570.0,104560.0,0.40620267]
[1762733158710,0.89820803,104570.0,104560.0,0.40820267]
[1762733158907,1.11976719,104570.0,104560.0,0.40820267]
[1762733159510,1.11976719,104570.0,104560.0,0.40920267]
[1762733160106,0.89820803,104570.0,104560.0,0.50486417]
[1762733160306,0.89820803,104570.0,104560.0,0.67675267]
[1762733160507,0.89820803,104570.0,104560.0,0.64307666]
[1762733160708,0.89820803,104570.0,104560.0,0.73873816]
[1762733161103,0.89820803,104570.0,104560.0,0.64307666]
[1762733161513,0.89820803,104570.0,104560.0,0.15113267]
[1762733162103,0.89820803,104570.0,104560.0,0.06560286]
[1762733162508,1.23599788,104570.0,104560.0,0.06560286]
[1762733162818,0.68454,104560.0,104550.0,0.14754346]
[1762733163007,0.53321,104550.0,104540.0,0.00478263]
[1762733163213,0.89620803,104550.0,104540.0,0.00213646]
[1762733163408,0.53321,104530.0,104520.0,0.59951655]
[1762733163707,0.89620803,104530.0,104520.0,0.43645406]
[1762733164008,0.89620803,104530.0,104520.0,0.32518696]
[1762733164204,0.89620803,104530.0,104520.0,0.42088516]
[1762733164612,0.89620803,104530.0,104520.0,0.32518696]
[1762733164820,0.89820803,104530.0,104520.0,0.42088516]
[1762733165209,1.17073475,104530.0,104520.0,0.42088516]
[1762733165601,1.17173475,104530.0,104520.0,0.42688516]
[1762733166099,1.17173475,104530.0,104520.0,0.42088516]
[1762733166309,1.17173475,104530.0,104520.0,0.42288516]
[1762733168016,0.81093475,104530.0,104520.0,0.42288516]
[1762733168410,0.81093475,104530.0,104520.0,0.24175547]
[1762733168612,0.81093475,104530.0,104520.0,0.32704547]
[1762733169318,0.53840803,104530.0,104520.0,0.29589883]
[1762733169614,0.89920803,104530.0,104520.0,0.12761395]
[1762733170111,1.05053803,104530.0,104520.0,0.12761395]
[1762733170911,1.14622703,104530.0,104520.0,0.002]
[1762733171118,0.68454,104520.0,104510.0,0.10063476]
[1762733171311,0.53321,104510.0,104500.0,0.07883418]
[1762733171616,1.04753803,104510.0,104500.0,0.07883418]
[1762733172407,1.04853803,104510.0,104500.0,0.08383418]
[1762733172716,0.68773803,104510.0,104500.0,0.08383418]
[1762733172903,0.68973803,104510.0,104500.0,0.08383418]
[1762733173110,0.68973803,104510.0,104490.0,0.4111028]
[1762733173314,0.68973803,104510.0,104500.0,0.0957101]
[1762733174021,0.68973803,104510.0,104500.0,0.080134]
[1762733174317,0.91058283,104510.0,104500.0,0.080134]
[1762733174706,0.22604283,104510.0,104500.0,0.561794]
[1762733174912,0.50342283,104510.0,104500.0,0.801034]
[1762733175118,0.91058283,104510.0,104500.0,0.922594]
[1762733175317,0.68973803,104510.0,104500.0,0.922594]
[1762733175513,0.53077186,104520.0,104510.0,0.7646373]
[1762733175717,0.91070672,104540.0,104530.0,0.405769]
[1762733175915,0.06029044,104540.0,104530.0,0.67551703]
[1762733176111,0.71240097,104540.0,104530.0,0.62350703]
[1762733176311,1.07320097,104540.0,104530.0,0.62350703]
[1762733176511,1.04998024,104540.0,104530.0,0.62350703]
[1762733176912,0.95430044,104540.0,104530.0,0.62350703]
[1762733177220,0.89474267,104540.0,104530.0,0.62350703]
[1762733177718,0.89674267,104540.0,104530.0,0.62350703]
[1762733177917,0.89974267,104540.0,104530.0,0.62350703]
[1762733178222,0.99542257,104540.0,104530.0,0.62350703]
[1762733178622,0.89974267,104540.0,104530.0,0.62350703]
[1762733179118,0.53894267,104540.0,104530.0,0.62350703]
[1762733179422,0.53894267,104540.0,104530.0,0.6017069]
[1762733180015,0.99542257,104540.0,104530.0,0.5060179]
[1762733180722,0.99542257,104540.0,104530.0,0.6017069]
[1762733181223,0.53321,104530.0,104520.0,0.6213153]
[1762733181414,0.89620803,104530.0,104520.0,0.6213153]
[1762733181811,0.99189703,104530.0,104520.0,0.6213153]
[1762733182124,0.99189703,104530.0,104520.0,0.6213182]
[1762733182317,0.99389703,104530.0,104520.0,0.52762]
[1762733182719,0.89820803,104530.0,104520.0,0.6233182]
[1762733183019,1.12092128,104530.0,104520.0,0.6233182]
[1762733183225,1.21661028,104530.0,104520.0,0.52762]
[1762733183723,1.21661028,104530.0,104520.0,0.26007]
[1762733183920,1.21661028,104530.0,104520.0,0.002]
[1762733184121,1.21661028,104530.0,104510.0,0.09584496]
[1762733184122,0.53321,104520.0,104510.0,0.60589063]
[1762733184323,0.89620803,104520.0,104510.0,0.60589063]
[1762733184828,1.26349339,104520.0,104510.0,0.52562]
[1762733185016,0.63458519,104520.0,104510.0,0.0957073]
[1762733185327,1.16979519,104520.0,104510.0,0.3557773]
[1762733185526,1.17079519,104520.0,104510.0,0.6233273]
[1762733185718,0.80999519,104520.0,104510.0,0.6233273]
[1762733185919,1.17079519,104520.0,104510.0,0.6233273]
[1762733186125,1.17079519,104520.0,104510.0,0.7707273]
[1762733187124,1.26649339,104520.0,104510.0,0.67502]
[1762733187315,1.26649339,104520.0,104510.0,0.74892157]
[1762733187519,1.17079519,104520.0,104510.0,0.74892157]
[1762733188917,0.91579183,104520.0,104510.0,0.74892157]
[1762733189117,0.91579183,104520.0,104510.0,0.56777508]
[1762733190019,1.18301183,104520.0,104510.0,0.30899698]
[1762733190219,0.27314647,104520.0,104510.0,0.8800458]
[1762733191026,0.00073267,104520.0,104510.0,0.8800458]
[1762733191229,0.45000483,104530.0,104520.0,0.1042386]
[1762733191429,0.45000483,104530.0,104520.0,0.46723663]
[1762733191630,0.54569433,104530.0,104520.0,0.46723663]
[1762733191928,0.54569433,104530.0,104520.0,0.61463663]
[1762733192129,0.45000483,104530.0,104520.0,0.61463663]
[1762733192325,0.45200483,104530.0,104520.0,0.61463663]
[1762733193529,0.45200483,104530.0,104520.0,0.85379663]
[1762733193823,0.003,104530.0,104520.0,0.85379663]
[1762733194025,0.003,104530.0,104520.0,0.83822433]
[1762733194223,0.26534,104530.0,104520.0,0.59906433]
[1762733194530,0.53256,104530.0,104520.0,0.83822433]
[1762733194720,0.26534,104530.0,104520.0,0.59906433]
[1762733195025,0.62538386,104540.0,104530.0,0.1042295]
[1762733195232,0.52970346,104540.0,104530.0,0.46722753]
[1762733195426,0.52970346,104540.0,104530.0,0.44542638]
[1762733196222,0.70219424,104540.0,104530.0,0.44542638]
[1762733196625,0.70219424,104540.0,104530.0,0.59282638]
[1762733196626,0.17249078,104540.0,104530.0,0.59282638]
[1762733196822,0.004,104540.0,104530.0,0.59282638]
[1762733197130,0.004,104540.0,104530.0,0.83198638]
[1762733197627,0.2217798,104550.0,104540.0,0.7602804]
[1762733197831,0.4841198,104550.0,104540.0,1.12327843]
[1762733198337,0.69580481,104570.0,104560.0,0.53712]
[1762733198629,0.69580481,104570.0,104560.0,1.11794013]
[1762733198630,0.27725481,104570.0,104560.0,1.11794013]
[1762733198933,0.27725481,104570.0,104560.0,1.35602013]
[1762733199127,0.80681481,104570.0,104560.0,1.23386013]
[1762733199332,0.90246771,104570.0,104560.0,0.99478013]
[1762733199522,0.80681481,104570.0,104560.0,0.99478013]
[1762733199722,0.27725481,104570.0,104560.0,1.35558013]
[1762733199929,0.27725481,104570.0,104560.0,1.59166013]
[1762733200434,0.0075,104570.0,104560.0,1.59266013]
[1762733200628,0.6327129,104570.0,104560.0,1.59266013]
[1762733200828,0.6327129,104570.0,104560.0,1.35358013]
[1762733201028,0.53706,104570.0,104560.0,1.35358013]
[1762733201234,0.0085,104570.0,104560.0,1.35558013]
[1762733201533,0.0085,104570.0,104560.0,1.59466013]
[1762733202732,1.16056401,104600.0,104590.0,0.6327546]
[1762733203035,1.16056401,104600.0,104590.0,0.00219803]
[1762733203425,0.6251946,104590.0,104580.0,0.61316684]
[1762733203619,0.62739263,104590.0,104580.0,0.61389951]
[1762733204029,0.62739263,104590.0,104580.0,0.59833473]
[1762733204222,0.75263534,104590.0,104580.0,0.59833473]
[1762733204426,0.75263534,104590.0,104580.0,0.95913473]
[1762733204734,0.75363534,104590.0,104580.0,0.96013473]
[1762733204936,0.75363534,104590.0,104580.0,0.59933473]
[1762733205233,0.85126994,104590.0,104580.0,0.60533473]
[1762733205433,0.75563534,104590.0,104580.0,0.96613473]
[1762733206730,0.53475803,104590.0,104580.0,0.96613473]
[1762733208734,0.63039263,104590.0,104580.0,0.60533473]
[1762733209036,0.63039263,104590.0,104580.0,0.96613473]
[1762733209436,0.53475803,104590.0,104580.0,0.96613473]
[1762733210135,0.85763008,104590.0,104580.0,0.96613473]
[1762733211034,0.17275205,104590.0,104580.0,1.13413473]
[1762733211339,0.17275205,104590.0,104580.0,1.52057473]
[1762733211835,0.00464346,104600.0,104590.0,0.0956346]
[1762733212034,0.26569346,104600.0,104590.0,1.31658727]
[1762733212541,0.6883,104610.0,104600.0,0.5174255]
[1762733212838,0.78611443,104610.0,104600.0,0.78428817]
[1762733213227,0.69049803,104610.0,104600.0,0.78428817]
[1762733213741,1.14691443,104610.0,104600.0,0.00073267]
[1762733213930,1.14791443,104610.0,104600.0,0.09635817]
[1762733214130,1.14791443,104610.0,104600.0,0.08079519]
[1762733214440,0.6883,104600.0,104590.0,0.64379816]
[1762733214630,0.69049803,104600.0,104590.0,0.63979816]
[1762733215225,0.69049803,104600.0,104590.0,0.72003816]
[1762733215427,0.69049803,104600.0,104590.0,1.08083816]
[1762733215627,0.69049803,104600.0,104590.0,1.08183816]
[1762733216339,0.53837803,104600.0,104590.0,1.08583816]
[1762733216935,0.00014346,104620.0,104610.0,0.53253]
[1762733217135,0.00014346,104620.0,104610.0,0.9889463]
[1762733217934,0.55953,104630.0,104620.0,0.7783072]
[1762733218139,0.56172803,104630.0,104620.0,1.11732437]
[1762733219335,0.56172803,104630.0,104620.0,1.11632437]
[1762733220037,0.56272803,104630.0,104620.0,1.12132437]
[1762733220242,0.00769803,104630.0,104620.0,1.12132437]
[1762733220642,9.562e-05,104640.0,104630.0,0.6281281]
[1762733221240,0.5737265,104660.0,104650.0,0.6281098]
[1762733221442,0.5737265,104660.0,104650.0,0.95779821]
[1762733221443,0.0186965,104660.0,104650.0,0.95779821]
[1762733221640,0.18844855,104660.0,104650.0,1.19667821]
[1762733221941,0.55503,104670.0,104660.0,0.7810907]
[1762733222142,0.55503,104680.0,104670.0,0.3525015]
[1762733222338,1.16648043,104680.0,104670.0,0.53253]
[1762733222538,1.16648043,104680.0,104670.0,0.6280915]
[1762733222539,0.80568043,104680.0,104670.0,0.6280915]
[1762733222741,0.71012803,104680.0,104670.0,0.6280915]
[1762733222936,0.82094554,104680.0,104670.0,0.53053]
[1762733223136,1.18274554,104680.0,104670.0,0.52953]
[1762733223347,1.18274554,104680.0,104670.0,0.001]
[1762733224242,0.27838,104660.0,104650.0,0.97449873]
[1762733224555,0.28057803,104660.0,104650.0,0.97449873]
[1762733225438,0.00319803,104660.0,104650.0,0.97749873]
[1762733225638,0.00319803,104660.0,104650.0,0.97849873]
[1762733226250,0.001,104660.0,104650.0,0.97849873]
[1762733229646,0.001,104660.0,104650.0,1.21737873]
[1762733229847,0.55822803,104660.0,104650.0,0.97849873]
[1762733230244,0.27938,104660.0,104650.0,0.97849873]
[1762733230445,0.001,104660.0,104650.0,0.97849873]
[1762733230752,0.57029511,104680.0,104670.0,0.6280916]
[1762733230953,0.57249314,104680.0,104670.0,0.60631925]
[1762733231347,0.69124868,104680.0,104670.0,0.96711925]
[1762733231845,0.84414868,104680.0,104670.0,0.60631925]
[1762733232051,0.84514868,104680.0,104670.0,0.60731925]
[1762733232256,0.84614868,104680.0,104670.0,0.76030925]
[1762733232451,0.69324868,104680.0,104670.0,0.76030925]
[1762733232652,0.84614868,104680.0,104670.0,0.76030925]
[1762733234254,0.84614868,104680.0,104670.0,0.74475791]
[1762733234640,0.84614868,104680.0,104670.0,1.10555791]
[1762733235255,0.69324868,104680.0,104670.0,1.10555791]
[1762733237456,0.41659868,104680.0,104670.0,1.10555791]
[1762733237653,0.69324868,104680.0,104670.0,1.10555791]
[1762733238156,0.78880118,104680.0,104670.0,1.10555791]
[1762733238354,0.72739314,104680.0,104670.0,1.10555791]
[1762733238951,0.72739314,104680.0,104670.0,1.04732]
[1762733239154,0.82294564,104680.0,104670.0,1.1428816]
[1762733239657,0.99265282,104680.0,104670.0,1.1428816]
[1762733239953,0.99265282,104680.0,104670.0,0.9898916]
[1762733240154,0.89710032,104680.0,104670.0,0.80901967]
[1762733240555,0.99265272,104680.0,104670.0,0.80901967]
[1762733241356,0.89710032,104680.0,104670.0,0.80901967]
[1762733241760,0.74420032,104680.0,104670.0,1.07870967]
[1762733241958,1.10301449,104690.0,104680.0,0.7810724]
[1762733242161,0.15871618,104690.0,104680.0,1.14407043]
[1762733242354,0.15871618,104690.0,104680.0,1.38287043]
[1762733242762,0.11890346,104690.0,104680.0,1.38287043]
[1762733242962,0.82683346,104710.0,104700.0,0.6235984]
[1762733243164,0.82683346,104710.0,104700.0,0.98659643]
[1762733243364,0.41266653,104710.0,104700.0,1.07784643]
[1762733243558,0.41266653,104710.0,104700.0,1.07684643]
[1762733243760,0.29376307,104710.0,104700.0,1.07684643]
[1762733244058,0.29376307,104710.0,104700.0,1.43664643]
[1762733244265,0.29376307,104710.0,104700.0,1.42110073]
[1762733244460,0.43578,104720.0,104710.0,0.455205]
[1762733244763,0.28288,104720.0,104710.0,1.09379303]
[1762733245677,0.80867877,104720.0,104710.0,0.89352803]
[1762733245972,1.16947877,104720.0,104710.0,0.09772353]
[1762733246174,1.16947877,104720.0,104710.0,0.00219803]
[1762733246374,0.81167877,104720.0,104710.0,0.00219803]
[1762733246676,0.81567877,104720.0,104710.0,0.62616353]
[1762733246978,0.71816267,104720.0,104710.0,0.60439969]
[1762733247177,0.71416267,104720.0,104710.0,0.60439969]
[1762733247372,0.81167897,104720.0,104710.0,0.50987419]
[1762733247679,0.7788155,104710.0,104700.0,0.6759728]
[1762733247872,0.78101353,104710.0,104700.0,0.8956146]
[1762733248072,1.3631151,104710.0,104690.0,0.45648156]
[1762733248276,0.68329,104700.0,104690.0,0.53412156]
[1762733248475,0.68548803,104700.0,104690.0,0.53412156]
[1762733249080,0.85577681,104700.0,104690.0,0.53412156]
[1762733249583,0.85577681,104700.0,104690.0,0.49530156]
[1762733249785,0.17248681,104700.0,104690.0,0.53412156]
[1762733250083,0.1574,104720.0,104710.0,0.1731655]
[1762733250273,0.15959803,104720.0,104710.0,0.5339655]
[1762733250876,0.42465803,104720.0,104710.0,0.5339655]
[1762733251185,0.80138601,104720.0,104710.0,0.8947655]
[1762733251583,0.68216803,104720.0,104710.0,0.8947655]
[1762733251878,0.77768433,104720.0,104710.0,0.8947655]
[1762733252286,0.89685654,104720.0,104710.0,0.8947655]
[1762733252581,0.6180955,104710.0,104700.0,0.6813682]
[1762733252884,0.7549837,104710.0,104700.0,0.58584]
[1762733253084,0.63581149,104710.0,104700.0,0.6813746]
[1762733253476,0.63581149,104710.0,104700.0,0.5339746]
[1762733253684,0.52257,104700.0,104690.0,0.53411926]
[1762733253881,0.52476803,104700.0,104690.0,0.53411926]
[1762733254078,0.52476803,104700.0,104690.0,0.5339758]
[1762733254283,0.52476803,104700.0,104690.0,0.51857299]
[1762733254880,0.52576803,104700.0,104690.0,0.52457299]
[1762733255686,0.52576803,104700.0,104690.0,0.52857299]
[1762733257987,0.62130263,104700.0,104690.0,0.52857299]
[1762733258188,0.62130263,104700.0,104690.0,0.45093299]
[1762733258381,0.62130263,104700.0,104690.0,0.48975299]
[1762733258590,0.52576803,104700.0,104690.0,0.52857299]
[1762733258790,0.62130263,104700.0,104690.0,0.52857299]
[1762733259288,0.79162445,104700.0,104690.0,0.52857299]
[1762733260091,0.79162445,104700.0,104690.0,0.48975299]
[1762733260492,0.79162445,104700.0,104690.0,0.01]
[1762733260692,0.98210263,104700.0,104690.0,0.00382658]
[1762733261388,0.6181137,104690.0,104670.0,0.32731741]
[1762733261593,0.68548803,104680.0,104670.0,0.0955563]
[1762733262092,0.52257,104670.0,104660.0,0.5416645]
[1762733262292,0.7461864,104670.0,104660.0,0.5416645]
[1762733263393,0.7481864,104670.0,104660.0,0.5606645]
[1762733263888,0.4906764,104670.0,104660.0,0.5606645]
[1762733264086,0.4896764,104670.0,104660.0,0.5496645]
[1762733264288,0.4896764,104670.0,104660.0,0.5391144]
[1762733264289,0.4906764,104670.0,104660.0,0.5391144]
[1762733264696,0.26925803,104670.0,104660.0,0.5391144]
[1762733264898,0.26825803,104670.0,104660.0,0.5311144]
[1762733265095,0.42897803,104670.0,104660.0,0.5341144]
[1762733266687,0.68648803,104670.0,104660.0,0.3532499]
[1762733266888,0.68648803,104670.0,104660.0,0.1035711]
[1762733266889,0.78205003,104670.0,104660.0,0.1035711]
[1762733267195,1.0034684,104670.0,104660.0,0.1035711]
[1762733267396,1.0034684,104670.0,104660.0,0.1462211]
[1762733267892,0.9079064,104670.0,104660.0,0.00624652]
[1762733268098,0.52177,104660.0,104650.0,0.44624346]
[1762733268303,0.52396803,104660.0,104650.0,0.54182366]
[1762733268500,0.74553717,104660.0,104650.0,0.54182366]
[1762733268696,0.74553717,104660.0,104650.0,0.3609384]
[1762733269290,0.74653717,104660.0,104650.0,0.3679384]
[1762733269502,0.74653717,104660.0,104650.0,0.34616617]
[1762733269797,0.74653717,104660.0,104650.0,0.35016617]
[1762733269998,0.74653717,104660.0,104650.0,0.34716617]
[1762733270196,0.89790717,104660.0,104650.0,0.34716617]
[1762733271099,0.89790717,104660.0,104650.0,0.34516617]
[1762733271294,0.33518108,104660.0,104650.0,0.50840617]
[1762733271609,0.33737911,104660.0,104650.0,0.61809062]
[1762733271796,0.33737911,104660.0,104650.0,0.37921062]
[1762733272193,0.00319803,104660.0,104650.0,0.37921062]
[1762733273001,0.69236026,104680.0,104670.0,0.355902]
[1762733273191,0.52152,104690.0,104680.0,0.6208129]
[1762733273192,1.1294837,104690.0,104680.0,0.6208129]
[1762733273399,1.13021637,104690.0,104680.0,0.52745803]
[1762733273597,1.40273129,104690.0,104680.0,0.26253803]
[1762733273793,1.40273129,104690.0,104680.0,0.00219803]
[1762733273993,0.7686928,104680.0,104670.0,0.06035534]
[1762733274200,1.13022547,104680.0,104670.0,0.0470018]
[1762733275506,1.13122547,104680.0,104670.0,0.0470018]
[1762733275705,1.40374039,104680.0,104670.0,0.0470018]
[1762733275905,1.40674039,104680.0,104670.0,0.0480018]
[1762733276203,1.40674039,104680.0,104670.0,0.04580377]
[1762733276508,1.40674039,104680.0,104670.0,0.14136577]
[1762733276708,0.67527,104670.0,104660.0,0.52324]
[1762733277009,1.03680267,104670.0,104660.0,0.62100913]
[1762733277401,1.03680267,104670.0,104660.0,0.59923651]
[1762733277802,1.03780267,104670.0,104660.0,0.60023651]
[1762733278003,1.25933994,104670.0,104660.0,0.60023651]
[1762733279411,1.25933994,104670.0,104660.0,0.09876913]
[1762733279712,1.25933994,104670.0,104660.0,0.36242913]
[1762733279909,1.25933994,104670.0,104660.0,0.62200913]
[1762733281011,1.35490194,104670.0,104660.0,0.62200913]
[1762733281309,1.25933994,104670.0,104660.0,0.62200913]
[1762733281714,1.03780267,104670.0,104660.0,0.62200913]
[1762733282410,1.03780267,104670.0,104660.0,0.4591799]
[1762733282604,1.3551086,104670.0,104660.0,0.0955711]
[1762733283106,1.43009244,104670.0,104660.0,0.6188111]
[1762733283806,1.20834851,104670.0,104660.0,0.6188111]
[1762733284110,0.17154584,104670.0,104660.0,1.49911025]
[1762733284306,0.17374387,104670.0,104660.0,1.26027025]
[1762733284611,0.52409803,104670.0,104660.0,0.89947025]
[1762733286111,0.52409803,104670.0,104660.0,0.87769883]
[1762733286813,0.39228977,104680.0,104670.0,0.773652]
[1762733287014,0.22174393,104680.0,104670.0,0.77585003]
[1762733287210,0.48135393,104680.0,104670.0,0.77585003]
[1762733287414,0.52163267,104680.0,104670.0,0.77585003]
[1762733287812,1.12935547,104680.0,104670.0,0.52543803]
[1762733288108,1.35151324,104680.0,104670.0,0.09776003]
[1762733288305,0.765272,104670.0,104660.0,0.62772174]
[1762733288502,1.12827003,104670.0,104660.0,0.6188048]
[1762733289017,0.88389803,104670.0,104660.0,0.7736548]
[1762733289611,0.88489803,104670.0,104660.0,0.7776548]
[1762733289811,1.15741295,104670.0,104660.0,0.7776548]
[1762733290411,1.15741295,104670.0,104660.0,0.7796548]
[1762733291015,1.40178495,104670.0,104660.0,0.006]
[1762733291215,1.76258495,104670.0,104660.0,0.006]
[1762733291412,1.76258495,104670.0,104660.0,0.0058566]
[1762733291613,0.60129,104640.0,104630.0,0.59769637]
[1762733291813,0.96428803,104640.0,104630.0,0.7736885]
[1762733292714,1.10625024,104640.0,104630.0,0.7736885]
[1762733292910,0.58635024,104640.0,104630.0,0.7796885]
[1762733293118,0.22555024,104640.0,104630.0,1.1404885]
[1762733293311,0.22555024,104640.0,104630.0,1.1434885]
[1762733293618,0.27265838,104650.0,104640.0,0.6188294]
[1762733293809,0.26048613,104650.0,104640.0,0.62102743]
[1762733294013,0.00087613,104650.0,104640.0,0.98182743]
[1762733294218,0.00087613,104650.0,104640.0,0.94449906]
[1762733294413,0.26048613,104650.0,104640.0,0.68607084]
[1762733294608,0.26048613,104650.0,104640.0,0.78166024]
[1762733294808,0.27251492,104660.0,104650.0,0.6188202]
[1762733295014,0.27251492,104660.0,104650.0,0.98181823]
[1762733295423,0.27251492,104660.0,104650.0,1.22069823]
[1762733295611,0.27251492,104660.0,104650.0,0.98181823]
[1762733295813,0.79493652,104680.0,104670.0,0.618802]
[1762733296011,0.79493652,104680.0,104670.0,0.98180003]
[1762733296012,0.67527,104680.0,104670.0,0.98180003]
[1762733296522,1.1316228,104680.0,104670.0,0.62100003]
[1762733296814,0.7708228,104680.0,104670.0,0.62100003]
[1762733297020,0.67627,104680.0,104670.0,0.62100003]
[1762733297220,0.67627,104680.0,104670.0,0.98180003]
[1762733297716,0.36544346,104690.0,104680.0,0.0955529]
[1762733298024,0.52554346,104690.0,104680.0,1.06607133]
[1762733298420,0.00464346,104690.0,104680.0,1.06607133]
[1762733299119,0.01551796,104710.0,104700.0,0.7736246]
[1762733299314,0.60475365,104720.0,104710.0,0.6187655]
[1762733299514,0.86604365,104720.0,104710.0,0.62096353]
[1762733299910,0.54122805,104720.0,104710.0,0.62096353]
[1762733300423,0.76317621,104720.0,104710.0,0.62096353]
[1762733300622,0.76517621,104720.0,104710.0,0.98176353]
[1762733300820,0.16215357,104720.0,104710.0,0.98176353]